fUST/lending_fUST_20240409
["ID","MTS","AMOUNT","RATE_DAILY","PERIOD"]
[321911453,1712614238976,-150.0,0.00035999,2]
[321911454,1712614238985,-603.81885434,0.00036,7]
[321911455,1712614238994,-162.91368704,0.00036217,7]
[321911456,1712614239004,-587.0,0.00036299,2]
[321911457,1712614239013,-464.50545485,0.00036643,4]
[321911458,1712614239022,-1191.19563009,0.00036644,4]
[321911459,1712614239031,-1207.63770869,0.00036911,30]
[321911460,1712614239040,-388.416301,0.00036986,120]
[321911461,1712614239050,-150.0,0.00036999,2]
[321911462,1712614239060,-154.95976064,0.00037048,4]
[321911463,1712614239070,-208.64468944,0.00037048,4]
[321911464,1712614239079,-162.91368704,0.00037796,8]
[321911465,1712614239089,-27605.716,0.00037835,30]
[321911466,1712614239098,-1537.4078129,0.000379,2]
[321911467,1712614239107,-185.0,0.00038,2]
[321911468,1712614239116,-1783.0,0.00038,120]
[321911469,1712614239126,-359.87198283,0.00038218,4]
[321911470,1712614239135,-3925.88648522,0.00038609,4]
[321911471,1712614239144,-236.643143,0.00038933,2]
[321911472,1712614239153,-65013.99099919,0.00038996,3]
[321911473,1712614239162,-387.06507566,0.00038996,4]
[321911474,1712614239171,-172.68981011,0.00038998,4]
[321911475,1712614239180,-202.7125,0.00038998,4]
[321911476,1712614239190,-180.78171506,0.00038998,4]
[321911477,1712614239199,-372.38257604,0.00038998,4]
[321911478,1712614239208,-284.08314006,0.00038998,4]
[321911479,1712614239218,-181.34731169,0.00038998,4]
[321911480,1712614239228,-155.03553122,0.00038998,4]
[321911481,1712614239237,-241.56762565,0.00038998,4]
[321911482,1712614239246,-400.13769079,0.00038998,4]
[321911483,1712614239255,-756.61419936,0.00038998,4]
[321911484,1712614239266,-1301.16723587,0.00038998,4]
[321911485,1712614239277,-345.95481293,0.00038998,4]
[321911486,1712614239286,-239.27900853,0.00038998,4]
[321911487,1712614239297,-1265.84812985,0.00038998,4]
[321911488,1712614239307,-3461.07441975,0.00038998,4]
[321911489,1712614239317,-371.5022523,0.00038998,4]
[321911490,1712614239326,-290.23277151,0.00038998,4]
[321911491,1712614239335,-2431.67271859,0.00038998,4]
[321911492,1712614239344,-506.63184784,0.00038998,4]
[321911493,1712614239353,-972.67050252,0.00038998,4]
[321911494,1712614239362,-1275.71083667,0.00038998,4]
[321911495,1712614239375,-1433.37668323,0.00038998,4]
[321911496,1712614239384,-254.98970345,0.00038998,4]
[321911497,1712614239393,-355.05993481,0.00038998,2]
[321911498,1712614239402,-327.49707419,0.00038998,4]
[321911499,1712614239412,-750.15457064,0.00038998,2]
[321911500,1712614239421,-29504.25462486,0.00038998,4]
[321911501,1712614239430,-223.64696511,0.00038998,4]
[321911502,1712614239439,-371.67946392,0.00038998,4]
[321911503,1712614239448,-1881.93339618,0.00038998,4]
[321911504,1712614239457,-707.64102279,0.00038998,4]
[321911505,1712614239466,-358.19825999,0.00038998,4]
[321911506,1712614239475,-436.59377494,0.00038998,4]
[321911507,1712614239484,-1666.82525661,0.00038998,4]
[321911508,1712614239496,-308.80925503,0.00038998,4]
[321911509,1712614239506,-283.60991601,0.00038998,4]
[321911510,1712614239515,-3470.56453944,0.00038998,4]
[321911511,1712614239525,-155.01704537,0.00038998,4]
[321911512,1712614239535,-370.4623003,0.00038998,4]
[321911513,1712614239545,-20816.71695511,0.00038998,4]
[321911514,1712614239555,-638.20876808,0.00038998,4]
[321911515,1712614239565,-322.93055652,0.00038998,4]
[321911516,1712614239577,-244.30116187,0.00038998,4]
[321911517,1712614239587,-190.72501436,0.00038998,4]
[321911518,1712614239596,-204.06613016,0.00038998,4]
[321911519,1712614239606,-155.79225386,0.00038999,4]
[321911520,1712614239616,-155.76948004,0.00038999,4]
[321911521,1712614239627,-156.33283191,0.00038999,4]
[321911522,1712614239636,-1219.24973636,0.00038999,4]
[321911523,1712614239645,-329.28,0.00038999,2]
[321911524,1712614239655,-329.28,0.00038999,2]
[321911525,1712614239665,-329.28,0.00038999,2]
[321911526,1712614239675,-329.28,0.00038999,2]
[321911527,1712614239691,-329.28,0.00038999,2]
[321911528,1712614239703,-329.28,0.00038999,2]
[321911529,1712614239712,-329.28,0.00038999,2]
[321911530,1712614239722,-329.28,0.00038999,2]
[321911531,1712614239732,-329.28,0.00038999,2]
[321911532,1712614239741,-329.28,0.00038999,2]
[321911533,1712614239750,-58556.446571,0.00039,30]
[321911536,1712614240410,-781.62971038,0.00034996,4]
[321911537,1712614240420,-8499.82700788,0.00039,30]
[321911628,1712615142914,155.37,0.00025,10]
[321911631,1712615225138,-464.73316154,0.00025224,2]
[321911632,1712615345106,-300.0,0.00025206,2]
[321911633,1712615345131,-924.63411097,0.00025208,2]
[321911634,1712615345151,-653.0989283,0.00025208,2]
[321911635,1712615354085,-271.8195425,0.00025206,2]
[321911636,1712615354105,-188.04976556,0.00025206,2]
[321911637,1712615354129,-154.95351395,0.00025207,2]
[321911638,1712615354148,-868.18863525,0.00025207,2]
[321911639,1712615354168,-3734.82468717,0.00025207,2]
[321911640,1712615354273,-3064.19317814,0.00025208,2]
[321911641,1712615354294,-154.95351395,0.00025208,2]
[321911642,1712615354314,-886.58989039,0.00025208,2]
[321911643,1712615354334,-156.74777884,0.00025208,2]
[321911644,1712615354354,-276.96705132,0.00025208,2]
[321911645,1712615354375,-300.0,0.00025208,2]
[321911646,1712615354396,-2615.47741153,0.00025209,2]
[321911647,1712615354416,-407.59656825,0.00025209,2]
[321911648,1712615354435,-1131.68428374,0.0002521,2]
[321911649,1712615354459,-469.89408815,0.0002521,2]
[321911650,1712615354479,-581.75582729,0.0002521,2]
[321911651,1712615354498,-637.89349192,0.0002521,2]
[321911652,1712615354517,-601.41035313,0.00025211,2]
[321911653,1712615354536,-2092.79838707,0.00025211,2]
[321911654,1712615354555,-1307.14749885,0.00025211,2]
[321911655,1712615354574,-263.37349984,0.00025212,2]
[321911656,1712615354594,-154.95351395,0.00025212,2]
[321911657,1712615354614,-1616.75713304,0.00025212,2]
[321911658,1712615354633,-220.14831517,0.00025212,2]
[321911659,1712615354653,-473.12701109,0.00025212,2]
[321911660,1712615354671,-2935.09161467,0.00025212,2]
[321911661,1712615354691,-2120.63245232,0.00025213,2]
[321911662,1712615354711,-47586.56218939,0.00025213,2]
[321911663,1712615354730,-13485.67407234,0.00025215,2]
[321911664,1712615358160,-400.0,0.00025205,2]
[321911665,1712615358183,-1865.50634258,0.00025206,2]
[321911666,1712615358203,-581.82818645,0.00025221,2]
[321911667,1712615358223,-173.00672746,0.00025224,2]
[321911668,1712615358243,-300.0,0.00026219,2]
[321911669,1712615358263,-24900.0,0.00026363,2]
[321911670,1712615358284,-2857.65006335,0.00027259,2]
[321911671,1712615358304,-420.0,0.00027301,2]
[321911672,1712615358324,-166.374451,0.00027397,2]
[321911673,1712615358345,-236.6431561,0.00027397,2]
[321911674,1712615358365,-420.0,0.00027729,2]
[321911675,1712615358385,-178.0,0.00028841,2]
[321911676,1712615358404,-167.0,0.0003,2]
[321911677,1712615358424,-562.80756559,0.00030132,4]
[321911678,1712615358444,-517.76393693,0.00030133,4]
[321911679,1712615358463,-587.0,0.00030502,2]
[321911680,1712615358557,-309.76769358,0.00031198,4]
[321911681,1712615358578,-150.0,0.000315,2]
[321911682,1712615359909,10372.69682734,0.00026916,2]
[321911683,1712615364091,-705.36070345,0.00026916,2]
[321911684,1712615366116,-169.42637949,0.00025121,2]
[321911685,1712615366139,-13821.94246921,0.00026916,2]
[321911686,1712615366161,-279.0,0.0003315,2]
[321911687,1712615366181,-10532.64632459,0.0003315,10]
[321911688,1712615370076,169.42637946,0.00027089,2]
[321911689,1712615431179,1909.47131865,0.00025159,2]
[321911778,1712615438587,-156.74777884,0.00029057,2]
[321911779,1712615438596,-169.42637946,0.00029058,2]
[321911780,1712615438605,-716.8771975,0.00030159,2]
[321911782,1712615438658,-1192.59412115,0.00030159,2]
[321911783,1712615438668,-169.42637946,0.00031026,2]
[321911784,1712615438677,-169.42637946,0.00032995,2]
[321911785,1712615438686,-400.0,0.00033149,2]
[321911786,1712615438695,-500.0,0.00033149,2]
[321911787,1712615438704,-7336.15311993,0.0003315,10]
[321911788,1712615439089,-2131.20055548,0.0003315,10]
[321911789,1712615439098,-500.0,0.00033204,2]
[321911790,1712615439106,-500.0,0.00033259,2]
[321911791,1712615439116,-500.0,0.00033314,2]
[321911792,1712615439125,-500.0,0.00033369,2]
[321911793,1712615439134,-500.0,0.00033423,2]
[321911794,1712615439148,-500.0,0.00033478,2]
[321911795,1712615439157,-500.0,0.00033533,2]
[321911796,1712615439168,-500.0,0.00033588,2]
[321911797,1712615439177,-500.0,0.00033643,2]
[321911798,1712615439186,-500.0,0.00033697,2]
[321911799,1712615439195,-500.0,0.00033752,2]
[321911800,1712615439204,-500.0,0.00033807,2]
[321911801,1712615439213,-500.0,0.00033862,2]
[321911802,1712615439221,-500.0,0.00033916,2]
[321911803,1712615439230,-500.0,0.00033971,2]
[321911804,1712615439239,-156.73208261,0.00034026,2]
[321911805,1712615439248,-464.50545485,0.00034702,4]
[321911806,1712615439257,-166.374451,0.00034703,2]
[321911807,1712615439266,-169.42637946,0.00034963,2]
[321911808,1712615439275,-1242.31070571,0.00034999,4]
[321911809,1712615439283,-595.96032213,0.00035097,2]
[321911810,1712615439292,-668.64742128,0.00035098,4]
[321911811,1712615439301,-6854.02678516,0.00035099,4]
[321911812,1712615439311,-186.0,0.000351,2]
[321911813,1712615439320,-859.00228183,0.000351,4]
[321911814,1712615439329,-857.05459567,0.00036463,4]
[321911815,1712615439337,-560.0,0.00036464,2]
[321911816,1712615439346,-1520.49711827,0.00036605,4]
[321911817,1712615439355,-1166.47225466,0.00036605,4]
[321911818,1712615439364,-3514.07713642,0.00036605,4]
[321911819,1712615439373,-781.62971038,0.00036606,4]
[321911820,1712615439382,-365.20859837,0.00036606,4]
[321911821,1712615439447,-252.65803434,0.00036606,4]
[321911822,1712615439457,-808.03694279,0.00036606,4]
[321911823,1712615439466,-169.42637946,0.00036932,2]
[321911824,1712615439475,-388.416301,0.00036986,120]
[321911825,1712615439484,-154.95976064,0.00037048,4]
[321911826,1712615439494,-208.64468944,0.00037048,4]
[321911827,1712615439503,-150.93962415,0.00037068,2]
[321911828,1712615439512,-63935.88010091,0.0003766,4]
[321911829,1712615439522,-2000.0,0.00037661,2]
[321911830,1712615439531,-301.8792483,0.00037691,4]
[321911831,1712615439541,-249.35493705,0.00037771,15]
[321911832,1712615439550,-27605.716,0.00037772,30]
[321911833,1712615439559,-637.739889,0.00037835,2]
[321911834,1712615439567,-7520.86577147,0.00038,2]
[321911835,1712615439576,-186.0,0.000381,2]
[321911836,1712615439585,-426.36527795,0.00038218,4]
[321911837,1712615439594,-603.7584966,0.00038324,7]
[321911838,1712615439602,-3925.88648522,0.00038608,4]
[321911839,1712615439611,-44210.50156497,0.000389,2]
[321911840,1712615439620,-169.42637946,0.000389,2]
[321911841,1712615439628,-150.0,0.00038941,2]
[321911842,1712615439638,-166.92714914,0.00038968,4]
[321911843,1712615439647,-543.0,0.0003897,35]
[321911844,1712615439656,-543.0,0.0003898,35]
[321911845,1712615439666,-543.0,0.0003899,35]
[321911846,1712615439675,-329.28,0.00038997,2]
[321911847,1712615439684,-329.28,0.00038997,2]
[321911848,1712615439692,-329.28,0.00038997,2]
[321911849,1712615439701,-329.28,0.00038997,2]
[321911850,1712615439710,-329.28,0.00038997,2]
[321911851,1712615439718,-329.28,0.00038997,2]
[321911852,1712615439727,-329.28,0.00038997,2]
[321911853,1712615439738,-329.28,0.00038997,2]
[321911854,1712615439746,-329.28,0.00038997,2]
[321911855,1712615439755,-329.28,0.00038997,2]
[321911856,1712615439764,-156.33283191,0.00038998,4]
[321911857,1712615439773,-1219.24973636,0.00038998,4]
[321911858,1712615439783,-155.76948004,0.00038998,4]
[321911859,1712615439792,-155.79225386,0.00038998,4]
[321911860,1712615439802,-155.06512735,0.00038998,4]
[321911861,1712615439811,-1140.11063756,0.00038998,4]
[321911862,1712615439820,-371.5022523,0.00038998,4]
[321911863,1712615439831,-322.93055652,0.00038998,4]
[321911864,1712615439841,-372.38257604,0.00038998,4]
[321911865,1712615439851,-180.78171506,0.00038998,4]
[321911866,1712615439860,-190.72501436,0.00038998,4]
[321911867,1712615439870,-241.56762565,0.00038998,4]
[321911868,1712615439879,-3470.56453944,0.00038998,4]
[321911869,1712615439889,-750.15457064,0.00038998,2]
[321911870,1712615439898,-223.64696511,0.00038998,4]
[321911871,1712615439907,-284.08314006,0.00038998,4]
[321911872,1712615439917,-155.03553122,0.00038998,4]
[321911873,1712615439927,-506.63184784,0.00038998,4]
[321911874,1712615439937,-308.80925503,0.00038998,4]
[321911875,1712615439946,-327.49707419,0.00038998,4]
[321911876,1712615439955,-239.27900853,0.00038998,4]
[321911877,1712615439964,-290.23277151,0.00038998,4]
[321911878,1712615439974,-400.13769079,0.00038998,4]
[321911879,1712615439983,-355.05993481,0.00038998,2]
[321911880,1712615439992,-358.19825999,0.00038998,4]
[321911881,1712615440002,-1275.71083667,0.00038998,4]
[321911882,1712615440011,-972.67050252,0.00038998,4]
[321911883,1712615440019,-181.34731169,0.00038998,4]
[321911884,1712615440029,-155.01704537,0.00038998,4]
[321911885,1712615440038,-707.64102279,0.00038998,4]
[321911886,1712615440047,-202.7125,0.00038998,4]
[321911887,1712615440056,-1301.16723587,0.00038998,4]
[321911888,1712615440065,-283.60991601,0.00038998,4]
[321911889,1712615440074,-172.68981011,0.00038998,4]
[321911890,1712615440084,-638.20876808,0.00038998,4]
[321911891,1712615440093,-244.30116187,0.00038998,4]
[321911892,1712615440102,-387.06507566,0.00038998,4]
[321911893,1712615440111,-254.98970345,0.00038998,4]
[321911894,1712615440120,-410.86999674,0.00038998,4]
[321911895,1712615440130,-2491.03087485,0.00038998,4]
[321911897,1712615440144,-1496.31204114,0.00038998,4]
[321911899,1712615440153,-5183.6283,0.00038998,4]
[321911901,1712615440162,-466.5149336,0.00038998,4]
[321911903,1712615440171,-436.359586,0.00038998,4]
[321911905,1712615440181,-1957.26319311,0.00038998,4]
[321911907,1712615440190,-3750.71991167,0.00038998,4]
[321911909,1712615440199,-1954.37802725,0.00038998,4]
[321911911,1712615440208,-3620.47231663,0.00038998,4]
[321911913,1712615440218,-157.31714174,0.00038998,4]
[321911914,1712615440228,-756.61419936,0.00038998,4]
[321911915,1712615440237,-155.7361241,0.00038998,4]
[321911916,1712615440246,-1055.98815553,0.00038998,4]
[321911917,1712615440256,-453.47656612,0.00038998,4]
[321911918,1712615440266,-1367.29488404,0.00038998,4]
[321911919,1712615440275,-384.75339594,0.00038998,4]
[321911920,1712615440284,-4994.4423695,0.00038998,4]
[321911921,1712615440294,-400.0,0.00038998,2]
[321911922,1712615440304,-2307.75737815,0.00038998,4]
[321911923,1712615440313,-984.42013924,0.00038998,4]
[321911924,1712615440323,-157.52710826,0.00038998,4]
[321911925,1712615440332,-8481.78529193,0.00038998,4]
[321911926,1712615440341,-127196.4793521,0.00038998,3]
[321911927,1712615440350,-29504.25462486,0.00038999,4]
[321911928,1712615440359,-58036.41190539,0.00039,30]
[321911929,1712615440372,-3962.3481216,0.00039,30]
[321911983,1712615443922,-631.33562707,0.00036604,4]
[321911985,1712615443931,-6417.14486486,0.00039,30]
[321912277,1712615884242,-900000.0,0.00039374,60]
[321912278,1712615889216,-900000.0,0.00039374,60]
[321912279,1712616065167,-900000.0,0.00039409,60]
[321912280,1712616073877,-900000.0,0.00039409,60]
[321912281,1712616078260,-900000.0,0.00039409,60]
[321912282,1712616150442,-3000000.0,0.00039409,60]
[321912283,1712616157196,-2279866.28649959,0.00039409,60]
[321912284,1712616157221,-720133.71350041,0.00039409,60]
[321912285,1712616161147,-3000000.0,0.00039409,60]
[321912288,1712616427279,-1077.76213869,0.00022487,2]
[321912289,1712616450095,-268.9244716,0.00022392,2]
[321912290,1712616450115,-157.22434872,0.00022484,2]
[321912291,1712616450137,-198.52412991,0.00022485,2]
[321912292,1712616451087,-78.44292141,0.00022485,2]
[321912293,1712616451107,-781.66926533,0.00022485,2]
[321912294,1712616451127,-886.58989039,0.00022485,2]
[321912295,1712616451147,-407.59656825,0.00022485,2]
[321912296,1712616451167,-271.8195425,0.00022486,2]
[321912297,1712616451186,-1131.68428374,0.00022486,2]
[321912298,1712616451206,-156.74777884,0.00022486,2]
[321912299,1712616451224,-787.74420389,0.00022487,2]
[321912300,1712616451244,-188.58893471,0.00022487,2]
[321912301,1712616451264,-156.54809607,0.00022487,2]
[321912302,1712616451285,-581.75582729,0.00022487,2]
[321912303,1712616451305,-2615.47741153,0.00022487,2]
[321912304,1712616451326,-300.0,0.00022488,2]
[321912305,1712616451346,-207.18381603,0.00022488,2]
[321912306,1712616451366,-205.65384658,0.00022488,2]
[321912307,1712616451389,-3734.82468717,0.00022488,2]
[321912308,1712616451412,-282.66267272,0.00022489,2]
[321912309,1712616451431,-637.89349192,0.00022489,2]
[321912310,1712616451450,-687.0280134,0.00022489,2]
[321912311,1712616451468,-688.99595907,0.00022489,2]
[321912312,1712616451489,-220.14831517,0.00022489,2]
[321912313,1712616451507,-188.04976556,0.0002249,2]
[321912314,1712616451525,-2092.79838707,0.0002249,2]
[321912315,1712616451542,-300.0,0.00022491,2]
[321912316,1712616451558,-469.89408815,0.00022491,2]
[321912317,1712616451576,-154.9690062,0.00022491,2]
[321912318,1712616451596,-601.41035313,0.00022491,2]
[321912319,1712616451615,-15294.27396596,0.00022491,2]
[321912320,1712616514289,250.0,0.00020476,2]
[321912321,1712616545106,-935.87904205,0.00021434,2]
[321912322,1712616545126,-300.0,0.00021434,2]
[321912323,1712616545146,-300.0,0.00021434,2]
[321912324,1712616545166,-154.9690062,0.00021435,2]
[321912325,1712616545187,-473.12701109,0.00021435,2]
[321912326,1712616545206,-154.9690062,0.00021435,2]
[321912327,1712616545225,-868.18863525,0.00021435,2]
[321912328,1712616545245,-1086.90254792,0.00021435,2]
[321912329,1712616545351,-19131.19494376,0.00021435,2]
[321912330,1712616545370,-924.63411097,0.00021436,2]
[321912331,1712616545391,-154.9690062,0.00021436,2]
[321912332,1712616545410,-215.70131407,0.00021436,2]
[321912333,1712616545432,-2120.63245232,0.00021437,2]
[321912334,1712616545453,-5781.60876067,0.00021437,2]
[321912335,1712616545475,-1616.75713304,0.00021437,2]
[321912336,1712616545495,-2579.2553814,0.00021437,2]
[321912337,1712616545515,-2935.09161467,0.00021437,2]
[321912338,1712616545533,-263.37349984,0.00021437,2]
[321912339,1712616545552,-1307.14749885,0.00021438,2]
[321912340,1712616545571,-300.0,0.00021439,2]
[321912341,1712616545590,-22133.9996383,0.0002144,2]
[321912342,1712616545611,-200.0,0.0002144,2]
[321912343,1712616545631,-895.5579,0.00021489,2]
[321912344,1712616545651,-3717.29210644,0.00022,2]
[321912345,1712616545672,-240.3515736,0.00022392,2]
[321912346,1712616545692,-249.35493705,0.00022498,2]
[321912347,1712616545711,-33760.41288011,0.00022501,2]
[321912348,1712616547077,-8640.44162848,0.00022501,2]
[321912349,1712616548383,-5185.7076808,0.00022501,2]
[321912350,1712616548404,-24900.0,0.00022502,2]
[321912351,1712616548427,-420.0,0.00023305,2]
[321912352,1712616548447,-176.296828,0.00023514,2]
[321912353,1712616548469,-420.0,0.00023577,2]
[321912354,1712616548490,-5407.0114717,0.00024799,2]
[321912355,1712616548513,-240.35157356,0.00024803,2]
[321912356,1712616548532,-587.0,0.0002534,2]
[321912357,1712616548552,-587.0,0.00025935,2]
[321912358,1712616548572,-240.35157356,0.00027213,3]
[321912359,1712616548593,-190.139572,0.00027397,2]
[321912360,1712616548613,-237.882362,0.00027397,2]
[321912361,1712616548632,-799.19959429,0.000275,17]
[321912362,1712616548652,-823.0,0.00027552,2]
[321912363,1712616548675,-823.0,0.00028529,2]
[321912364,1712616548695,-268.92447158,0.00029008,2]
[321912365,1712616548718,-246.19731078,0.00029247,2]
[321912366,1712616548741,-240.35157356,0.00029624,4]
[321912367,1712616548763,-854.0,0.00029957,2]
[321912368,1712616548785,-309.0,0.0003,2]
[321912369,1712616548806,-1152.0,0.00031382,2]
[321912370,1712616548827,-2000.0,0.000315,2]
[321912371,1712616548847,-2223.076204,0.0003151,2]
[321912372,1712616548868,-240.35157356,0.00032035,5]
[321912373,1712616548888,-895.5579,0.00032234,2]
[321912374,1712616548908,-309.0,0.00033,2]
[321912375,1712616548928,-857.05459567,0.00033063,4]
[321912376,1712616548948,-190.139572,0.00033165,2]
[321912377,1712616548968,-237.882362,0.00033165,2]
[321912378,1712616548987,-2131.20055548,0.00033468,10]
[321912379,1712616549007,-781.62971038,0.00033597,4]
[321912380,1712616549026,-1050.22741983,0.00033597,4]
[321912381,1712616549046,-547.63454468,0.00033597,4]
[321912382,1712616549065,-276.31035049,0.00033598,4]
[321912383,1712616549085,-3514.07713642,0.00033598,4]
[321912384,1712616549175,-232.58943423,0.00033598,4]
[321912385,1712616572234,592.16610092,0.0002,5]
[321912408,1712616631828,-6906.81623191,0.00029999,2]
[321912410,1712616631837,-3156.0,0.0003,30]
[321912412,1712616631847,-500.0,0.00030136,2]
[321912415,1712616631862,-500.0,0.00030191,2]
[321912417,1712616631871,-1240.42355071,0.00030238,4]
[321912419,1712616631880,-500.0,0.00030246,2]
[321912421,1712616631890,-500.0,0.00030301,2]
[321912423,1712616631899,-500.0,0.00030356,2]
[321912425,1712616631911,-500.0,0.0003041,2]
[321912427,1712616631920,-500.0,0.00030465,2]
[321912429,1712616631929,-500.0,0.0003052,2]
[321912431,1712616631938,-500.0,0.00030575,2]
[321912433,1712616631947,-500.0,0.0003063,2]
[321912435,1712616631956,-500.0,0.00030684,2]
[321912437,1712616631964,-500.0,0.00030739,2]
[321912445,1712616631974,-500.0,0.00030794,2]
[321912447,1712616632051,-500.0,0.00030849,2]
[321912449,1712616632063,-500.0,0.00030904,2]
[321912451,1712616632072,-156.73208261,0.00030958,2]
[321912453,1712616632082,-781.62971038,0.00033592,4]
[321912455,1712616632091,-1075.68165431,0.00033592,4]
[321912457,1712616632100,-635.67928553,0.00033593,4]
[321912459,1712616632109,-1166.47225466,0.00033593,4]
[321912461,1712616632118,-400.0,0.00033594,2]
[321912462,1712616632127,-4994.4423695,0.00033594,4]
[321912463,1712616632136,-923.07026752,0.00033595,4]
[321912464,1712616632145,-278.36597163,0.00033595,4]
[321912465,1712616632154,-252.65803434,0.00033595,4]
[321912466,1712616632164,-808.03694279,0.00033595,4]
[321912467,1712616632173,-295.78468449,0.00033596,4]
[321912468,1712616632182,-365.20859837,0.00033596,4]
[321912469,1712616632191,-379.77710347,0.00033596,4]
[321912471,1712616632200,-32054.98548063,0.00033598,30]
[321912473,1712616632213,-25267.85660926,0.00033598,30]
[321912476,1712616632224,-915.43233444,0.00033598,30]
[321912478,1712616632233,-176.033329,0.000336,2]
[321912480,1712616632242,-2811.82124942,0.00033935,4]
[321912482,1712616632251,-1174.94792535,0.00033936,4]
[321912484,1712616632260,-464.50545485,0.00034445,4]
[321912486,1712616632270,-240.35157356,0.00034446,7]
[321912488,1712616632278,-154.9690062,0.00034999,7]
[321912490,1712616632288,-595.96032213,0.00035,2]
[321912492,1712616632297,-668.64742128,0.00035007,4]
[321912494,1712616632306,-347.3465609,0.00035008,4]
[321912496,1712616632315,-309.0,0.00035624,2]
[321912498,1712616632324,-2000.0,0.00035624,2]
[321912500,1712616632333,-204.06613016,0.0003572,4]
[321912502,1712616632341,-1338.95487346,0.00035721,4]
[321912565,1712616637950,-1756.24424029,0.00033591,4]
[321912566,1712616637960,-1520.49711827,0.00033592,4]
[321912567,1712616637969,-5515.0719117,0.00035721,4]
[321912568,1712616637978,-254.98970345,0.00035722,4]
[321912570,1712616637988,-3620.47231663,0.00035722,4]
[321912572,1712616637997,-355.05993481,0.00035722,2]
[321912574,1712616638006,-308.20848733,0.00035722,4]
[321912576,1712616638016,-387.06507566,0.00035722,4]
[321912577,1712616638025,-6347.7709496,0.00035722,4]
[321912578,1712616638034,-58903.41388559,0.00035722,4]
[321912579,1712616638043,-1055.98815553,0.00035722,4]
[321912580,1712616638053,-3750.71991167,0.00035722,4]
[321912581,1712616638062,-11112.41633827,0.00035722,4]
[321912582,1712616638072,-207.93023383,0.00035722,4]
[321912583,1712616638081,-1300.16892023,0.00035722,4]
[321912584,1712616638090,-157.51161601,0.00035722,4]
[321912585,1712616638100,-436.359586,0.00035722,4]
[321912586,1712616638109,-1954.37802725,0.00035722,4]
[321912587,1712616638118,-808.05197604,0.00035722,4]
[321912588,1712616638128,-369.65061358,0.00035722,4]
[321912589,1712616638137,-765.63209459,0.00035722,35]
[321912590,1712616638146,-2579.2553814,0.00035722,4]
[321912591,1712616638155,-155.72063185,0.00035722,4]
[321912592,1712616638166,-453.47656612,0.00035722,4]
[321912593,1712616638175,-157.30164949,0.00035722,4]
[321912594,1712616638184,-241.56762565,0.00035722,4]
[321912595,1712616638194,-785.31242773,0.00035722,4]
[321912596,1712616638204,-896.92812417,0.00035722,4]
[321912597,1712616638213,-466.5149336,0.00035722,4]
[321912598,1712616638222,-5564.97168316,0.00035723,4]
[321912599,1712616638231,-5183.6283,0.00035723,4]
[321912600,1712616638240,-1930.22588294,0.00035723,4]
[321912601,1712616638249,-562.64730962,0.00035723,4]
[321912602,1712616638259,-36212.4183,0.00035732,30]
[321912603,1712616638268,-150.95471359,0.00036432,2]
[321912604,1712616638278,-240.35157356,0.00036856,8]
[321912605,1712616638287,-150.0,0.00036873,2]
[321912606,1712616638296,-560.0,0.00036954,2]
[321912607,1712616638305,-648.614568,0.00036986,120]
[321912608,1712616638314,-301.90942717,0.00037045,4]
[321912609,1712616638324,-208.64468944,0.00037048,4]
[321912610,1712616638333,-603.81885434,0.00037667,7]
[321912611,1712616638342,-1015.75,0.00037731,2]
[321912612,1712616638351,-1015.75,0.00037731,2]
[321912613,1712616638360,-1015.76,0.00037731,2]
[321912614,1712616638369,-1015.76,0.00037731,2]
[321912615,1712616638379,-1015.76,0.00037731,2]
[321912616,1712616638388,-1015.76,0.00037731,2]
[321912617,1712616638398,-1015.76,0.00037731,2]
[321912618,1712616638408,-1015.76,0.00037731,2]
[321912619,1712616638419,-1015.76,0.00037731,2]
[321912620,1712616638428,-127196.4793521,0.00037732,3]
[321912621,1712616638438,-28211.2354,0.00037732,30]
[321912622,1712616638449,-7520.86577147,0.00038,2]
[321912623,1712616638459,-426.36527795,0.00038218,4]
[321912624,1712616638468,-166.94383685,0.000383,4]
[321912625,1712616638478,-3925.88648522,0.00038608,4]
[321912626,1712616638543,-158.06271097,0.00038609,3]